[Event "56th Biel Festival MTO 2023"]
[White "Liu,Yan"]
[Black "Vantika Agrawal"]
[Site "Biel"]
[Round "7.5"]
[Annotator "ChessBase"]
[Result "1-0"]
[Date "2023.07.25"]
[WhiteElo "2542"]
[BlackElo "2428"]
[PlyCount "103"]
[TimeControl "60"]

1. c4 {[%emt 0:0:0]} Nf6 {[%emt 0:0:0]} 2. Nf3 {[%emt 0:0:0]} g6 {[%emt 0:0:0]} 3. g3 {[%emt 0:0:0]} Bg7 {[%emt 0:0:0]} 4. Bg2 {[%emt 0:0:0]} O-O {[%emt 0:0:0]} 5. d4 {[%emt 0:0:0]} d6 {[%emt 0:0:0]} 6. O-O {[%emt 0:0:0]} c5 {[%emt 0:0:0]} 7. dxc5 {[%emt 0:0:0]} dxc5 {[%emt 0:0:0]} 8. Ne5 {[%emt 0:0:0]} Qd4 {[%emt 0:0:0]} 9. Nd3 {[%emt 0:12:30]} Qxc4 {[%emt 0:0:10]} 10. Na3 {[%emt 0:2:26]} Qg4 {[%emt 0:1:9]} 11. h3 {[%emt 0:11:6]} Qh5 {[%emt 0:1:46]} 12. g4 {[%emt 0:4:19]} Bxg4 {[%emt 0:0:53]} 13. hxg4 {[%emt 0:2:45]} Nxg4 {[%emt 0:0:29]} 14. Bf4 {[%emt 0:0:5]} Nc6 {[%emt 0:2:3]} 15. Rc1 {[%emt 0:20:23]} g5 {[%emt 0:39:10]} 16. Rxc5 {[%emt 0:13:42]} f5 {[%emt 0:0:49]} 17. Bg3 {[%emt 0:1:36]} Rad8 {[%emt 0:10:57]} 18. e3 {[%emt 0:8:55]} Qf7 {[%emt 0:9:4]} 19. Qe2 {[%emt 0:4:7]} Qe6 {[%emt 0:5:21]} 20. Nb5 {[%emt 0:3:37]} Nd4 {[%emt 0:10:18]} 21. Nxd4 {[%emt 0:0:10]} Bxd4 {[%emt 0:0:21]} 22. Rc2 {[%emt 0:4:37]} Bb6 {[%emt 0:10:22]} 23. Nc5 {[%emt 0:0:17]} Bxc5 {[%emt 0:1:6]} 24. Rxc5 {[%emt 0:0:4]} b6 {[%emt 0:0:34]} 25. Qc4 {[%emt 0:2:46]} Qxc4 {[%emt 0:0:47]} 26. Rxc4 {[%emt 0:0:7]} Rd2 {[%emt 0:4:4]} 27. Bf3 {[%emt 0:0:50]} h5 {[%emt 0:1:30]} 28. Rd1 {[%emt 0:1:8]} Rfd8 {[%emt 0:0:45]} 29. Rxd2 {[%emt 0:0:35]} Rxd2 {[%emt 0:0:5]} 30. Rc7 {[%emt 0:2:0]} Kf7 {[%emt 0:1:44]} 31. Rxa7 {[%emt 0:2:30]} h4 {[%emt 0:1:23]} 32. Bxg4 {[%emt 0:0:27]} fxg4 {[%emt 0:0:29]} 33. Bc7 {[%emt 0:1:37]} Rxb2 {[%emt 0:0:23]} 34. Ra4 {[%emt 0:0:42]} g3 {[%emt 0:0:48]} 35. fxg3 {[%emt 0:0:13]} h3 {[%emt 0:0:23]} 36. a3 {[%emt 0:2:34]} b5 {[%emt 0:0:31]} 37. Re4 {[%emt 0:0:52]} Ra2 {[%emt 0:1:3]} 38. g4 {[%emt 0:1:15]} Rxa3 {[%emt 0:0:30]} 39. Kh2 {[%emt 0:1:0]} Ra4 {[%emt 0:0:31]} 40. Re5 {[%emt 0:0:22]} Rxg4 {[%emt 0:0:26]} 41. Kxh3 {[%emt 0:30:37]} Rc4 {[%emt 0:0:0]} 42. Bb6 {[%emt 0:0:0]} b4 {[%emt 0:0:0]} 43. Bd4 {[%emt 0:0:0]} Ke8 {[%emt 0:9:59]} 44. Kg4 {[%emt 0:0:0]} Kd7 {[%emt 0:0:58]} 45. Rc5 {[%emt 0:0:0]} Rxc5 {[%emt 0:0:55]} 46. Bxc5 {[%emt 0:0:0]} b3 {[%emt 0:0:4]} 47. Bd4 {[%emt 0:0:0]} Kc6 {[%emt 0:1:53]} 48. e4 {[%emt 0:0:0]} Kb5 {[%emt 0:2:17]} 49. Kxg5 {[%emt 0:0:0]} Kc4 {[%emt 0:0:19]} 50. Ba1 {[%emt 0:0:0]} Kd3 {[%emt 0:1:55]} 51. e5 {[%emt 0:0:0]} Ke4 {[%emt 0:1:11]} 52. Kg6 {[%emt 0:0:0]} 1-0

[Event "56th Biel Festival MTO 2023"]
[White "Peng,Xiongjian"]
[Black "Rodrigue-Lemieux,Shawn"]
[Site "Biel"]
[Round "7.6"]
[Annotator "ChessBase"]
[Result "1-0"]
[Date "2023.07.25"]
[WhiteElo "2489"]
[BlackElo "2495"]
[PlyCount "33"]
[TimeControl "60"]

1. c4 {[%emt 0:0:0]} e6 {[%emt 0:0:0]} 2. Nc3 {[%emt 0:0:0]} Bb4 {[%emt 0:0:0]} 3. e4 {[%emt 0:0:0]} c5 {[%emt 0:0:0]} 4. Nb5 {[%emt 0:0:0]} d6 {[%emt 0:2:12]} 5. a3 {[%emt 0:3:32]} Ba5 {[%emt 0:0:8]} 6. b4 {[%emt 0:0:5]} cxb4 {[%emt 0:6:50]} 7. axb4 {[%emt 0:0:5]} Bxb4 {[%emt 0:1:2]} 8. Qa4 {[%emt 0:0:10]} Nc6 {[%emt 0:0:34]} 9. Ba3 {[%emt 0:0:12]} Bxa3 {[%emt 0:11:53]} 10. Qxa3 {[%emt 0:0:55]} Ke7 {[%emt 0:3:27]} 11. Nf3 {[%emt 0:1:0]} Nf6 {[%emt 0:11:59]} 12. e5 {[%emt 0:0:18]} Ne8 {[%emt 0:2:2]} 13. exd6+ {[%emt 0:2:2]} Nxd6 {[%emt 0:0:14]} 14. Ng5 {[%emt 0:0:8]} f5 {[%emt 0:0:33]} 15. h4 {[%emt 0:38:32]} a5 {[%emt 0:3:42]} 16. Rb1 {[%emt 0:5:26]} Rb8 {[%emt 0:13:8]} 17. Rh3 {[%emt 0:0:43]} 1-0

[Event "56th Biel Festival MTO 2023"]
[White "Sanchez Alvarez,Roberto Carlos"]
[Black "Meshkovs,Nikita"]
[Site "Biel"]
[Round "7.7"]
[Annotator "ChessBase"]
[Result "1/2-1/2"]
[Date "2023.07.25"]
[WhiteElo "2444"]
[BlackElo "2565"]
[PlyCount "42"]
[TimeControl "60"]

1. d4 {[%emt 0:0:0]} Nf6 {[%emt 0:0:0]} 2. c4 {[%emt 0:0:0]} e6 {[%emt 0:0:0]} 3. Nf3 {[%emt 0:0:0]} d5 {[%emt 0:0:0]} 4. Nc3 {[%emt 0:0:0]} dxc4 {[%emt 0:0:0]} 5. e3 {[%emt 0:0:0]} a6 {[%emt 0:0:0]} 6. a4 {[%emt 0:0:0]} b6 {[%emt 0:0:0]} 7. Bxc4 {[%emt 0:0:0]} Bb7 {[%emt 0:0:0]} 8. O-O {[%emt 0:0:0]} Bb4 {[%emt 0:0:0]} 9. Qe2 {[%emt 0:0:0]} O-O {[%emt 0:0:0]} 10. Rd1 {[%emt 0:0:0]} Nbd7 {[%emt 0:0:0]} 11. Na2 {[%emt 0:0:58]} Bd6 {[%emt 0:0:0]} 12. Nc3 {[%emt 0:0:13]} Bb4 {[%emt 0:0:0]} 13. Na2 {[%emt 0:2:1]} Bd6 {[%emt 0:0:0]} 14. Nc3 {[%emt 0:0:13]} c5 {[%emt 0:0:0]} 15. e4 {[%emt 0:11:22]} cxd4 {[%emt 0:0:0]} 16. Nxd4 {[%emt 0:5:54]} Qc7 {[%emt 0:4:12]} 17. g3 {[%emt 0:0:41]} Bb4 {[%emt 0:19:39]} 18. f3 {[%emt 0:1:13]} Ne5 {[%emt 0:5:49]} 19. Bb3 {[%emt 0:7:7]} Bxc3 {[%emt 0:27:49]} 20. bxc3 {[%emt 0:0:38]} Qxc3 {[%emt 0:0:2]} 21. Bb2 {[%emt 0:5:18]} Qa5 {[%emt 0:4:57]} 1/2-1/2

[Event "56th Biel Festival MTO 2023"]
[White "Dotzer,Lukas"]
[Black "Quesada Perez,Luis Ernesto"]
[Site "Biel"]
[Round "7.8"]
[Annotator "ChessBase"]
[Result "0-1"]
[Date "2023.07.25"]
[WhiteElo "2369"]
[BlackElo "2553"]
[PlyCount "74"]
[TimeControl "60"]

1. e4 {[%emt 0:0:0]} c5 {[%emt 0:0:0]} 2. Nf3 {[%emt 0:0:0]} d6 {[%emt 0:0:0]} 3. d4 {[%emt 0:0:0]} cxd4 {[%emt 0:0:0]} 4. Nxd4 {[%emt 0:0:0]} Nf6 {[%emt 0:0:0]} 5. Nc3 {[%emt 0:0:0]} a6 {[%emt 0:0:0]} 6. Bg5 {[%emt 0:0:0]} Nbd7 {[%emt 0:0:0]} 7. Qe2 {[%emt 0:0:0]} h6 {[%emt 0:0:0]} 8. Bh4 {[%emt 0:0:0]} g6 {[%emt 0:0:0]} 9. f4 {[%emt 0:0:0]} e5 {[%emt 0:0:0]} 10. fxe5 {[%emt 0:0:0]} dxe5 {[%emt 0:0:0]} 11. O-O-O {[%emt 0:0:0]} Qc7 {[%emt 0:0:0]} 12. Nb3 {[%emt 0:0:0]} b5 {[%emt 0:0:0]} 13. Rxd7 {[%emt 0:8:29]} Nxd7 {[%emt 0:0:0]} 14. Nd5 {[%emt 0:0:17]} Qb8 {[%emt 0:0:0]} 15. Qd2 {[%emt 0:2:30]} Bb7 {[%emt 0:9:23]} 16. Na5 {[%emt 0:5:13]} g5 {[%emt 0:0:22]} 17. Bf2 {[%emt 0:10:18]} Bg7 {[%emt 0:3:38]} 18. Be2 {[%emt 0:12:31]} Bxd5 {[%emt 0:4:36]} 19. Qxd5 {[%emt 0:1:50]} Nf6 {[%emt 0:0:8]} 20. Qc6+ {[%emt 0:2:5]} Kf8 {[%emt 0:0:2]} 21. Rf1 {[%emt 0:12:43]} Qc8 {[%emt 0:7:55]} 22. Bc5+ {[%emt 0:16:25]} Kg8 {[%emt 0:0:35]} 23. Qd6 {[%emt 0:11:35]} Nxe4 {[%emt 0:7:4]} 24. Qd5 {[%emt 0:9:24]} Nf6 {[%emt 0:0:12]} 25. Qf3 {[%emt 0:4:31]} e4 {[%emt 0:5:7]} 26. Qf2 {[%emt 0:1:16]} h5 {[%emt 0:2:23]} 27. Bd4 {[%emt 0:2:21]} Rh6 {[%emt 0:0:9]} 28. Qe3 {[%emt 0:2:13]} Rg6 {[%emt 0:5:23]} 29. Qb3 {[%emt 0:0:40]} Qc7 {[%emt 0:0:57]} 30. Bc3 {[%emt 0:0:32]} Ng4 {[%emt 0:0:42]} 31. Bxg7 {[%emt 0:0:34]} Kxg7 {[%emt 0:0:9]} 32. h3 {[%emt 0:0:21]} Rf6 {[%emt 0:0:27]} 33. Rd1 {[%emt 0:0:36]} Nf2 {[%emt 0:0:32]} 34. Rf1 {[%emt 0:0:30]} Nd3+ {[%emt 0:1:19]} 35. Kb1 {[%emt 0:0:32]} Rxf1+ {[%emt 0:0:12]} 36. Bxf1 {[%emt 0:0:2]} Qxa5 {[%emt 0:0:12]} 37. c3 {[%emt 0:0:29]} Qa4 {[%emt 0:0:40]} 0-1

[Event "56th Biel Festival MTO 2023"]
[White "Samadov,Read"]
[Black "Huang,Renjie"]
[Site "Biel"]
[Round "7.9"]
[Annotator "ChessBase"]
[Result "1/2-1/2"]
[Date "2023.07.25"]
[WhiteElo "2482"]
[BlackElo "2445"]
[PlyCount "58"]
[TimeControl "60"]

1. d4 {[%emt 0:0:0]} Nf6 {[%emt 0:0:0]} 2. c4 {[%emt 0:0:0]} e6 {[%emt 0:0:0]} 3. Nf3 {[%emt 0:0:0]} d5 {[%emt 0:0:0]} 4. g3 {[%emt 0:0:0]} dxc4 {[%emt 0:0:0]} 5. Bg2 {[%emt 0:0:0]} Bb4+ {[%emt 0:0:0]} 6. Bd2 {[%emt 0:0:0]} a5 {[%emt 0:0:0]} 7. O-O {[%emt 0:0:0]} O-O {[%emt 0:0:0]} 8. e3 {[%emt 0:0:0]} Nbd7 {[%emt 0:0:0]} 9. Qc2 {[%emt 0:4:0]} c5 {[%emt 0:5:42]} 10. a3 {[%emt 0:8:52]} Bxd2 {[%emt 0:0:12]} 11. Nbxd2 {[%emt 0:0:21]} b5 {[%emt 0:1:21]} 12. a4 {[%emt 0:6:57]} bxa4 {[%emt 0:4:38]} 13. Nxc4 {[%emt 0:7:29]} Ba6 {[%emt 0:2:43]} 14. Rfc1 {[%emt 0:7:10]} Rc8 {[%emt 0:1:10]} 15. Nd6 {[%emt 0:7:42]} Rc6 {[%emt 0:0:29]} 16. Nxf7 {[%emt 0:7:45]} Rxf7 {[%emt 0:1:5]} 17. Ng5 {[%emt 0:0:13]} Rc8 {[%emt 0:1:20]} 18. Nxf7 {[%emt 0:0:19]} Kxf7 {[%emt 0:0:3]} 19. Qxa4 {[%emt 0:1:1]} cxd4 {[%emt 0:1:18]} 20. Qxd4 {[%emt 0:2:45]} Rxc1+ {[%emt 0:2:16]} 21. Rxc1 {[%emt 0:0:2]} Qb8 {[%emt 0:1:17]} 22. Ra1 {[%emt 0:8:58]} Qb5 {[%emt 0:8:41]} 23. Qc3 {[%emt 0:2:31]} a4 {[%emt 0:2:23]} 24. Qd4 {[%emt 0:5:6]} Bb7 {[%emt 0:6:43]} 25. Qxa4 {[%emt 0:5:52]} Qxb2 {[%emt 0:1:5]} 26. Qa2 {[%emt 0:0:25]} Qxa2 {[%emt 0:0:57]} 27. Rxa2 {[%emt 0:0:17]} Bxg2 {[%emt 0:1:30]} 28. Kxg2 {[%emt 0:0:2]} e5 {[%emt 0:0:3]} 29. Ra7 {[%emt 0:8:7]} g5 {[%emt 0:1:7]} 1/2-1/2

[Event "56th Biel Festival MTO 2023"]
[White "Wang,Chen"]
[Black "Weishaeutel,Moritz"]
[Site "Biel"]
[Round "7.10"]
[Annotator "ChessBase"]
[Result "1/2-1/2"]
[Date "2023.07.25"]
[WhiteElo "2477"]
[BlackElo "2442"]
[PlyCount "129"]
[TimeControl "60"]

1. e4 {[%emt 0:0:0]} c5 {[%emt 0:0:0]} 2. Nf3 {[%emt 0:0:0]} d6 {[%emt 0:0:0]} 3. Bb5+ {[%emt 0:0:0]} Bd7 {[%emt 0:0:0]} 4. Bxd7+ {[%emt 0:0:0]} Nxd7 {[%emt 0:0:0]} 5. O-O {[%emt 0:0:0]} Ngf6 {[%emt 0:0:0]} 6. Qe2 {[%emt 0:0:0]} e6 {[%emt 0:0:0]} 7. c3 {[%emt 0:0:0]} Be7 {[%emt 0:0:0]} 8. d4 {[%emt 0:0:0]} O-O {[%emt 0:0:0]} 9. Rd1 {[%emt 0:3:52]} cxd4 {[%emt 0:0:0]} 10. cxd4 {[%emt 0:4:56]} b5 {[%emt 0:0:0]} 11. Ne1 {[%emt 0:8:43]} Qb6 {[%emt 0:0:0]} 12. f3 {[%emt 0:1:2]} Rfc8 {[%emt 0:0:0]} 13. Be3 {[%emt 0:0:21]} Qb7 {[%emt 0:4:11]} 14. Nd2 {[%emt 0:1:22]} a6 {[%emt 0:4:18]} 15. Nf1 {[%emt 0:3:8]} Nf8 {[%emt 0:7:38]} 16. Nd3 {[%emt 0:0:58]} Rc7 {[%emt 0:1:38]} 17. Bf2 {[%emt 0:0:26]} Rac8 {[%emt 0:2:41]} 18. Ne3 {[%emt 0:0:12]} Ng6 {[%emt 0:3:1]} 19. g3 {[%emt 0:3:22]} a5 {[%emt 0:3:19]} 20. Rac1 {[%emt 0:0:50]} b4 {[%emt 0:2:11]} 21. Qd2 {[%emt 0:11:3]} Bd8 {[%emt 0:4:49]} 22. Rxc7 {[%emt 0:0:28]} Bxc7 {[%emt 0:5:33]} 23. b3 {[%emt 0:6:7]} Ne7 {[%emt 0:5:35]} 24. Nb2 {[%emt 0:1:57]} d5 {[%emt 0:2:53]} 25. e5 {[%emt 0:0:30]} Nd7 {[%emt 0:0:13]} 26. Na4 {[%emt 0:4:0]} Bb6 {[%emt 0:2:50]} 27. Ng2 {[%emt 0:7:9]} Rc6 {[%emt 0:4:7]} 28. Rc1 {[%emt 0:10:4]} Qa7 {[%emt 0:0:29]} 29. Rxc6 {[%emt 0:4:0]} Nxc6 {[%emt 0:0:5]} 30. Nxb6 {[%emt 0:0:6]} Qxb6 {[%emt 0:0:9]} 31. Nf4 {[%emt 0:0:35]} Na7 {[%emt 0:3:46]} 32. Nh5 {[%emt 0:8:38]} h6 {[%emt 0:8:52]} 33. Be3 {[%emt 0:1:17]} Kh7 {[%emt 0:8:15]} 34. Kg2 {[%emt 0:2:21]} Qc6 {[%emt 0:2:2]} 35. Kf1 {[%emt 0:2:47]} Nb5 {[%emt 0:7:29]} 36. Nf4 {[%emt 0:7:51]} Qc3 {[%emt 0:10:57]} 37. Ne2 {[%emt 0:0:35]} Qa1+ {[%emt 0:0:7]} 38. Kf2 {[%emt 0:0:23]} Nc3 {[%emt 0:1:48]} 39. Nxc3 {[%emt 0:3:4]} bxc3 {[%emt 0:0:3]} 40. Qc2+ {[%emt 0:0:8]} g6 {[%emt 0:0:55]} 41. Bc1 {[%emt 0:31:12]} Nb8 {[%emt 0:39:22]} 42. Ke3 {[%emt 0:4:43]} Nc6 {[%emt 0:0:7]} 43. a3 {[%emt 0:0:5]} a4 {[%emt 0:0:18]} 44. bxa4 {[%emt 0:0:0]} Na5 {[%emt 0:0:0]} 45. Kd3 {[%emt 0:0:0]} Nc4 {[%emt 0:0:0]} 46. Qxc3 {[%emt 0:0:0]} Qb1+ {[%emt 0:0:0]} 47. Ke2 {[%emt 0:0:0]} Qa2+ {[%emt 0:0:0]} 48. Kd1 {[%emt 0:0:0]} Qxh2 {[%emt 0:0:0]} 49. g4 {[%emt 0:0:0]} Qf2 {[%emt 0:0:0]} 50. a5 {[%emt 0:0:0]} Qa2 {[%emt 0:0:0]} 51. Ke1 {[%emt 0:0:0]} Qb1 {[%emt 0:0:0]} 52. Kf2 {[%emt 0:0:0]} Kg7 {[%emt 0:0:0]} 53. f4 {[%emt 0:0:0]} Nxa5 {[%emt 0:0:0]} 54. f5 {[%emt 0:1:41]} exf5 {[%emt 0:0:0]} 55. e6 {[%emt 0:6:28]} Nc4 {[%emt 0:0:0]} 56. e7 {[%emt 0:0:2]} Qb8 {[%emt 0:3:33]} 57. Qg3 {[%emt 0:0:59]} Qe8 {[%emt 0:2:9]} 58. Qc7 {[%emt 0:1:8]} Qa4 {[%emt 0:0:11]} 59. gxf5 {[%emt 0:0:53]} Qc2+ {[%emt 0:0:17]} 60. Kg3 {[%emt 0:0:3]} Qd3+ {[%emt 0:1:4]} 61. Kh2 {[%emt 0:0:7]} Qe2+ {[%emt 0:1:10]} 62. Kg3 {[%emt 0:0:44]} Qe1+ {[%emt 0:1:6]} 63. Kh2 {[%emt 0:1:1]} Qf2+ {[%emt 0:0:36]} 64. Kh1 {[%emt 0:0:3]} Qf1+ {[%emt 0:0:8]} 65. Kh2 {[%emt 0:0:4]} 1/2-1/2

[Event "56th Biel Festival MTO 2023"]
[White "Jinan Jomon"]
[Black "Saraci,Nderim"]
[Site "Biel"]
[Round "7.11"]
[Annotator "ChessBase"]
[Result "0-1"]
[Date "2023.07.25"]
[WhiteElo "2409"]
[BlackElo "2472"]
[PlyCount "82"]
[TimeControl "60"]

1. c4 {[%emt 0:0:0]} Nf6 {[%emt 0:0:0]} 2. Nf3 {[%emt 0:0:0]} g6 {[%emt 0:0:0]} 3. d4 {[%emt 0:0:0]} Bg7 {[%emt 0:0:0]} 4. g3 {[%emt 0:0:0]} O-O {[%emt 0:0:0]} 5. Bg2 {[%emt 0:0:0]} d6 {[%emt 0:0:0]} 6. Nc3 {[%emt 0:0:0]} Nc6 {[%emt 0:0:0]} 7. O-O {[%emt 0:0:0]} e5 {[%emt 0:0:0]} 8. dxe5 {[%emt 0:0:0]} dxe5 {[%emt 0:0:0]} 9. Bg5 {[%emt 0:0:0]} Be6 {[%emt 0:0:0]} 10. Nd2 {[%emt 0:0:0]} h6 {[%emt 0:2:0]} 11. Bxf6 {[%emt 0:0:0]} Bxf6 {[%emt 0:0:11]} 12. Nde4 {[%emt 0:0:0]} Bg7 {[%emt 0:8:33]} 13. Nc5 {[%emt 0:22:19]} Bc8 {[%emt 0:13:15]} 14. Qa4 {[%emt 0:24:3]} Qd6 {[%emt 0:26:23]} 15. N5e4 {[%emt 0:10:32]} Qb4 {[%emt 0:11:34]} 16. Qxb4 {[%emt 0:5:25]} Nxb4 {[%emt 0:1:30]} 17. Nc5 {[%emt 0:2:8]} c6 {[%emt 0:14:19]} 18. Rad1 {[%emt 0:2:11]} Rb8 {[%emt 0:6:20]} 19. a3 {[%emt 0:2:33]} Na6 {[%emt 0:0:17]} 20. Nxa6 {[%emt 0:2:45]} bxa6 {[%emt 0:0:2]} 21. Bxc6 {[%emt 0:9:33]} Bh3 {[%emt 0:1:41]} 22. Rfe1 {[%emt 0:5:50]} Rfc8 {[%emt 0:2:16]} 23. Bd5 {[%emt 0:2:36]} Rxb2 {[%emt 0:0:24]} 24. Ne4 {[%emt 0:5:36]} Bf5 {[%emt 0:6:38]} 25. Nd6 {[%emt 0:0:51]} Rc7 {[%emt 0:0:31]} 26. e4 {[%emt 0:0:52]} Bg4 {[%emt 0:4:2]} 27. Rb1 {[%emt 0:0:4]} Rb6 {[%emt 0:0:6]} 28. a4 {[%emt 0:2:19]} Rxd6 {[%emt 0:0:37]} 29. Rb8+ {[%emt 0:2:6]} Bf8 {[%emt 0:0:51]} 30. Reb1 {[%emt 0:1:9]} Kg7 {[%emt 0:0:31]} 31. Ra8 {[%emt 0:1:25]} Rb6 {[%emt 0:1:49]} 32. Rxb6 {[%emt 0:0:6]} axb6 {[%emt 0:0:4]} 33. Rxa6 {[%emt 0:0:4]} Bc5 {[%emt 0:1:32]} 34. Kg2 {[%emt 0:1:9]} Be2 {[%emt 0:1:0]} 35. a5 {[%emt 0:1:47]} b5 {[%emt 0:0:27]} 36. cxb5 {[%emt 0:0:26]} Bxb5 {[%emt 0:0:6]} 37. Ra8 {[%emt 0:0:2]} Bc6 {[%emt 0:0:58]} 38. Bxc6 {[%emt 0:0:32]} Rxc6 {[%emt 0:0:5]} 39. f4 {[%emt 0:0:27]} Bd4 {[%emt 0:0:17]} 40. a6 {[%emt 0:0:25]} Rc2+ {[%emt 0:0:14]} 41. Kf3 {[%emt 0:30:4]} h5 {[%emt 0:30:59]} 0-1

[Event "56th Biel Festival MTO 2023"]
[White "Rathanvel,V S"]
[Black "Licznerski,Lukasz"]
[Site "Biel"]
[Round "7.12"]
[Annotator "ChessBase"]
[Result "1-0"]
[Date "2023.07.25"]
[WhiteElo "2463"]
[BlackElo "2430"]
[PlyCount "47"]
[TimeControl "60"]

1. e4 {[%emt 0:0:0]} e5 {[%emt 0:0:0]} 2. Nf3 {[%emt 0:0:0]} Nc6 {[%emt 0:0:0]} 3. Bb5 {[%emt 0:0:0]} a6 {[%emt 0:0:0]} 4. Ba4 {[%emt 0:0:0]} Nf6 {[%emt 0:0:0]} 5. O-O {[%emt 0:0:0]} Be7 {[%emt 0:0:0]} 6. Re1 {[%emt 0:0:0]} b5 {[%emt 0:0:0]} 7. Bb3 {[%emt 0:0:0]} d6 {[%emt 0:0:0]} 8. c3 {[%emt 0:0:0]} O-O {[%emt 0:0:0]} 9. h3 {[%emt 0:0:0]} Re8 {[%emt 0:2:46]} 10. d4 {[%emt 0:0:0]} h6 {[%emt 0:0:17]} 11. Nbd2 {[%emt 0:0:0]} Bb7 {[%emt 0:1:19]} 12. Nf1 {[%emt 0:1:40]} Bf8 {[%emt 0:0:25]} 13. Ng3 {[%emt 0:1:3]} Na5 {[%emt 0:0:43]} 14. Bc2 {[%emt 0:1:42]} Nc4 {[%emt 0:0:17]} 15. b3 {[%emt 0:15:35]} Nb6 {[%emt 0:0:4]} 16. Bd2 {[%emt 0:13:37]} c5 {[%emt 0:19:24]} 17. d5 {[%emt 0:1:36]} c4 {[%emt 0:2:43]} 18. Be3 {[%emt 0:1:56]} Qc7 {[%emt 0:8:32]} 19. Rc1 {[%emt 0:25:20]} Nfd7 {[%emt 0:4:24]} 20. Nf5 {[%emt 0:2:35]} Kh7 {[%emt 0:16:34]} 21. Bxh6 {[%emt 0:7:31]} gxh6 {[%emt 0:16:7]} 22. Ng5+ {[%emt 0:0:3]} Kg8 {[%emt 0:2:22]} 23. Qh5 {[%emt 0:1:2]} Nc5 {[%emt 0:2:20]} 24. Re3 {[%emt 0:1:38]} 1-0

[Event "56th Biel Festival MTO 2023"]
[White "Ajay Krishna,S."]
[Black "Chasin,Nico"]
[Site "Biel"]
[Round "7.13"]
[Annotator "ChessBase"]
[Result "0-1"]
[Date "2023.07.25"]
[WhiteElo "2390"]
[BlackElo "2455"]
[PlyCount "84"]
[TimeControl "60"]

1. Nf3 {[%emt 0:0:0]} Nf6 {[%emt 0:0:0]} 2. c4 {[%emt 0:0:0]} e6 {[%emt 0:0:0]} 3. g3 {[%emt 0:0:0]} d5 {[%emt 0:0:0]} 4. Bg2 {[%emt 0:0:0]} d4 {[%emt 0:0:39]} 5. O-O {[%emt 0:0:0]} Nc6 {[%emt 0:1:59]} 6. e3 {[%emt 0:0:0]} e5 {[%emt 0:1:50]} 7. exd4 {[%emt 0:0:0]} exd4 {[%emt 0:0:27]} 8. d3 {[%emt 0:0:0]} Be7 {[%emt 0:2:2]} 9. Re1 {[%emt 0:0:0]} O-O {[%emt 0:0:8]} 10. Na3 {[%emt 0:0:0]} h6 {[%emt 0:4:1]} 11. Nc2 {[%emt 0:0:0]} a5 {[%emt 0:10:36]} 12. a3 {[%emt 0:5:9]} Bc5 {[%emt 0:11:5]} 13. b3 {[%emt 0:12:38]} Bf5 {[%emt 0:5:55]} 14. Rb1 {[%emt 0:4:10]} Bh7 {[%emt 0:8:43]} 15. b4 {[%emt 0:2:6]} axb4 {[%emt 0:1:15]} 16. axb4 {[%emt 0:0:51]} Ba7 {[%emt 0:0:26]} 17. Bb2 {[%emt 0:4:49]} Nd7 {[%emt 0:11:3]} 18. c5 {[%emt 0:10:43]} Re8 {[%emt 0:4:45]} 19. Rxe8+ {[%emt 0:1:29]} Qxe8 {[%emt 0:0:1]} 20. Nfxd4 {[%emt 0:0:25]} Nxd4 {[%emt 0:0:59]} 21. Bxd4 {[%emt 0:1:3]} Rd8 {[%emt 0:1:52]} 22. Qd2 {[%emt 0:5:7]} Nf8 {[%emt 0:1:43]} 23. Bf1 {[%emt 0:24:37]} c6 {[%emt 0:6:48]} 24. Bb2 {[%emt 0:2:7]} b6 {[%emt 0:4:26]} 25. Qc3 {[%emt 0:6:36]} Ne6 {[%emt 0:0:2]} 26. Re1 {[%emt 0:8:38]} Qd7 {[%emt 0:0:21]} 27. Re3 {[%emt 0:1:37]} bxc5 {[%emt 0:0:48]} 28. bxc5 {[%emt 0:1:2]} Bf5 {[%emt 0:4:7]} 29. Re5 {[%emt 0:1:22]} Bg6 {[%emt 0:0:52]} 30. Nb4 {[%emt 0:2:58]} f6 {[%emt 0:1:44]} 31. Re1 {[%emt 0:1:37]} Bxc5 {[%emt 0:5:19]} 32. Bh3 {[%emt 0:3:47]} Bxb4 {[%emt 0:0:3]} 33. Qxb4 {[%emt 0:0:6]} Bf7 {[%emt 0:1:44]} 34. Bf5 {[%emt 0:1:4]} Qd5 {[%emt 0:3:37]} 35. Be4 {[%emt 0:1:7]} Qc5 {[%emt 0:2:0]} 36. Qb7 {[%emt 0:1:19]} Ng5 {[%emt 0:0:41]} 37. d4 {[%emt 0:0:42]} Qa5 {[%emt 0:0:4]} 38. Re2 {[%emt 0:0:35]} Bc4 {[%emt 0:0:23]} 39. Bd3 {[%emt 0:0:27]} Bxd3 {[%emt 0:0:22]} 40. Re7 {[%emt 0:0:26]} Kh8 {[%emt 0:0:15]} 41. h4 {[%emt 0:30:10]} Nf3+ {[%emt 0:31:18]} 42. Kg2 {[%emt 0:0:3]} Qd5 {[%emt 0:0:7]} 0-1

[Event "56th Biel Festival MTO 2023"]
[White "Muthaiah AL"]
[Black "Sukandar,Irine Kharisma"]
[Site "Biel"]
[Round "7.14"]
[Annotator "ChessBase"]
[Result "1-0"]
[Date "2023.07.25"]
[WhiteElo "2445"]
[BlackElo "2358"]
[PlyCount "79"]
[TimeControl "60"]

1. d4 {[%emt 0:0:0]} d5 {[%emt 0:0:0]} 2. Bf4 {[%emt 0:0:0]} Nf6 {[%emt 0:0:0]} 3. e3 {[%emt 0:0:0]} c5 {[%emt 0:0:0]} 4. Nf3 {[%emt 0:0:0]} e6 {[%emt 0:0:0]} 5. Nbd2 {[%emt 0:0:0]} Qb6 {[%emt 0:0:0]} 6. Rb1 {[%emt 0:0:0]} Bd6 {[%emt 0:0:0]} 7. dxc5 {[%emt 0:0:0]} Qxc5 {[%emt 0:0:0]} 8. b4 {[%emt 0:0:0]} Qc7 {[%emt 0:0:0]} 9. Bxd6 {[%emt 0:0:0]} Qxd6 {[%emt 0:0:0]} 10. c4 {[%emt 0:0:0]} b6 {[%emt 0:0:0]} 11. cxd5 {[%emt 0:11:58]} exd5 {[%emt 0:1:57]} 12. Nd4 {[%emt 0:11:59]} O-O {[%emt 0:0:51]} 13. Be2 {[%emt 0:4:20]} Nc6 {[%emt 0:1:35]} 14. Nxc6 {[%emt 0:5:32]} Qxc6 {[%emt 0:0:5]} 15. O-O {[%emt 0:0:18]} Bf5 {[%emt 0:0:55]} 16. Rc1 {[%emt 0:1:52]} Qd6 {[%emt 0:0:42]} 17. b5 {[%emt 0:15:35]} Rac8 {[%emt 0:8:4]} 18. Qa4 {[%emt 0:3:19]} Nd7 {[%emt 0:10:58]} 19. Nb3 {[%emt 0:6:27]} Bc2 {[%emt 0:4:29]} 20. Qxa7 {[%emt 0:6:5]} Bxb3 {[%emt 0:13:24]} 21. Rxc8 {[%emt 0:4:8]} Rxc8 {[%emt 0:0:4]} 22. axb3 {[%emt 0:0:10]} Nc5 {[%emt 0:4:43]} 23. Rc1 {[%emt 0:3:29]} Qd8 {[%emt 0:2:13]} 24. Qa3 {[%emt 0:1:28]} h6 {[%emt 0:13:1]} 25. h3 {[%emt 0:1:54]} Ne4 {[%emt 0:1:0]} 26. Bf3 {[%emt 0:8:53]} Nc3 {[%emt 0:2:0]} 27. Qb2 {[%emt 0:1:4]} Qf6 {[%emt 0:3:26]} 28. Rc2 {[%emt 0:5:34]} d4 {[%emt 0:16:41]} 29. Bc6 {[%emt 0:3:49]} Rd8 {[%emt 0:9:15]} 30. exd4 {[%emt 0:0:35]} Nd1 {[%emt 0:0:14]} 31. Qa1 {[%emt 0:3:5]} Rxd4 {[%emt 0:0:5]} 32. Bf3 {[%emt 0:1:45]} Qe5 {[%emt 0:1:28]} 33. Qc1 {[%emt 0:1:46]} Rd6 {[%emt 0:5:22]} 34. g3 {[%emt 0:1:8]} g6 {[%emt 0:2:21]} 35. Kg2 {[%emt 0:0:52]} Qe1 {[%emt 0:0:57]} 36. Re2 {[%emt 0:0:51]} Qc3 {[%emt 0:0:5]} 37. Qxh6 {[%emt 0:0:10]} Rd8 {[%emt 0:0:49]} 38. Bd5 {[%emt 0:0:48]} Qf6 {[%emt 0:0:16]} 39. Bc4 {[%emt 0:0:32]} Nc3 {[%emt 0:0:39]} 40. Re3 {[%emt 0:0:31]} 1-0